[Event "55th Biel Festival MTO 2022"]
[Site "Biel"]
[Date "2022.07.15"]
[Round "3.6"]
[White "Bharath Subramaniyam H"]
[Black "Sethuraman S.P."]
[Result "1/2-1/2"]
[ECO "A17"]
[WhiteElo "2479"]
[BlackElo "2623"]
[Annotator "ChessBase"]
[PlyCount "124"]
[EventDate "2022.07.13"]
[EventType "swiss"]
[EventCountry "SUI"]
[SourceTitle "playchess.com"]
[Source "ChessBase"]
[SourceQuality "1"]
[TimeControl "40/5400+30:1800+30"]

1. c4 {[%emt 0:00:06]} Nf6 {[%emt 0:02:23]} 2. Nc3 {[%emt 0:00:13]} e6 {[%emt 0:03:50]} 3. Nf3 {[%emt 0:31:12]} d5 {[%emt 0:07:30]} 4. e3 {[%emt 0:00:30]} a6 {[%emt 0:00:30]} 5. b3 {[%emt 0:00:30]} b6 {[%emt 0:00:30]} 6. Bb2 {[%emt 0:00:30]} Bb7 {[%emt 0:00:30]} 7. Qc2 {[%emt 0:00:30]} Nbd7 {[%emt 0:00:30]} 8. Be2 {[%emt 0:00:30]} Bd6 {[%emt 0:00:30]} 9. cxd5 {[%emt 0:00:30]} exd5 {[%emt 0:00:30]} 10. Nd4 {[%emt 0:00:30]} g6 {[%emt 0:03:15]} 11. O-O {[%emt 0:03:04]} c5 {[%emt 0:27:37]} 12. Nf3 {[%emt 0:17:04]} Qc7 {[%emt 0:19:14]} 13. Rac1 {[%emt 0:00:30]} Rc8 {[%emt 0:00:30]} 14. Qb1 {[%emt 0:00:30]} Qb8 {[%emt 0:00:30]} 15. Na4 {[%emt 0:16:25]} d4 {[%emt 0:04:24]} 16. exd4 {[%emt 0:05:36]} Bxf3 {[%emt 0:01:57]} 17. Bxf3 {[%emt 0:00:30]} Bxh2+ {[%emt 0:00:30]} 18. Kh1 {[%emt 0:00:30]} Qf4 {[%emt 0:00:30]} 19. Rfe1+ {[%emt 0:01:18]} Kf8 {[%emt 0:05:35]} 20. dxc5 {[%emt 0:06:11]} Qh4 {[%emt 0:00:30]} 21. Rc4 {[%emt 0:00:30]} Bf4+ {[%emt 0:05:22]} 22. Kg1 {[%emt 0:00:13]} Qh2+ {[%emt 0:01:45]} 23. Kf1 {[%emt 0:00:12]} Qh1+ {[%emt 0:09:26]} 24. Ke2 {[%emt 0:10:22]} Re8+ {[%emt 0:03:09]} 25. Re4 {[%emt 0:00:30]} Nxe4 {[%emt 0:00:30]} 26. Rxh1 {[%emt 0:00:30]} Nxd2+ {[%emt 0:00:30]} 27. Kd3 {[%emt 0:00:30]} Nxb1 {[%emt 0:00:30]} 28. Bxh8 {[%emt 0:00:30]} Nd2 {[%emt 0:00:30]} 29. Bd5 {[%emt 0:00:30]} h5 {[%emt 0:00:30]} 30. Kd4 {[%emt 0:00:30]} Nxc5 {[%emt 0:00:30]} 31. Nxc5 {[%emt 0:00:30]} bxc5+ {[%emt 0:00:30]} 32. Kxc5 {[%emt 0:00:30]} Rd8 {[%emt 0:00:30]} 33. g3 {[%emt 0:00:30]} Bg5 {[%emt 0:00:30]} 34. Be5 {[%emt 0:01:21]} Be7+ {[%emt 0:00:11]} 35. Kc6 {[%emt 0:00:20]} Rc8+ {[%emt 0:00:03]} 36. Bc7 {[%emt 0:02:01]} Bd8 {[%emt 0:00:04]} 37. Kd7 {[%emt 0:00:03]} Rxc7+ {[%emt 0:00:03]} 38. Kxd8 {[%emt 0:00:05]} Rc5 {[%emt 0:00:16]} 39. Bb7 {[%emt 0:00:26]} Ra5 {[%emt 0:02:24]} 40. Re1 {[%emt 0:00:15]} Rxa2 {[%emt 0:00:11]} 41. Re2 {[%emt 0:30:28]} a5 {[%emt 0:31:48]} 42. Bd5 {[%emt 0:02:57]} Rb2 {[%emt 0:00:00]} 43. f4 {[%emt 0:00:00]} Kg7 {[%emt 0:00:00]} 44. Ke7 {[%emt 0:00:00]} Rc2 {[%emt 0:00:00]} 45. Kd6 {[%emt 0:00:00]} Kf6 {[%emt 0:00:00]} 46. Re7 {[%emt 0:00:00]} Kf5 {[%emt 0:00:00]} 47. Rxf7+ {[%emt 0:00:00]} Kg4 {[%emt 0:00:00]} 48. Rg7 {[%emt 0:00:00]} Kf5 {[%emt 0:00:00]} 49. Be6+ {[%emt 0:00:00]} Ke4 {[%emt 0:00:00]} 50. Rxg6 {[%emt 0:00:00]} Kd4 {[%emt 0:00:00]} 51. Bd5 {[%emt 0:00:00]} Rc5 {[%emt 0:00:50]} 52. Rg5 {[%emt 0:00:00]} Rb5 {[%emt 0:00:52]} 53. Bc6 {[%emt 0:00:00]} Rxb3 {[%emt 0:00:04]} 54. Rd5+ {[%emt 0:00:00]} Ke3 {[%emt 0:00:04]} 55. Rxh5 {[%emt 0:00:00]} a4 {[%emt 0:01:36]} 56. Bxa4 {[%emt 0:01:41]} Ne4+ {[%emt 0:00:04]} 57. Ke5 {[%emt 0:00:59]} Ra3 {[%emt 0:03:41]} 58. g4 {[%emt 0:01:41]} Nf2 {[%emt 0:00:06]} 59. Bd7 {[%emt 0:03:09]} Nxg4+ {[%emt 0:00:49]} 60. Bxg4 {[%emt 0:00:51]} Ra5+ {[%emt 0:00:03]} 61. Kf6 {[%emt 0:00:13]} Rxh5 {[%emt 0:00:03]} 62. Bxh5 {[%emt 0:00:05]} Kxf4 {[%emt 0:00:02]} 1/2-1/2

[Event "55th Biel Festival MTO 2022"]
[Site "Biel"]
[Date "2022.07.15"]
[Round "3.7"]
[White "Prraneeth Vuppala"]
[Black "Puranik Abhimanyu"]
[Result "0-1"]
[ECO "B46"]
[WhiteElo "2457"]
[BlackElo "2612"]
[Annotator "ChessBase"]
[PlyCount "100"]
[EventDate "2022.07.13"]
[EventType "swiss"]
[EventCountry "SUI"]
[SourceTitle "playchess.com"]
[Source "ChessBase"]
[SourceQuality "1"]
[TimeControl "40/5400+30:1800+30"]

1. e4 {[%emt 0:00:06]} c5 {[%emt 0:01:16]} 2. Nf3 {[%emt 0:00:26]} e6 {[%emt 0:00:24]} 3. d4 {[%emt 0:01:29]} cxd4 {[%emt 0:00:08]} 4. Nxd4 {[%emt 0:00:10]} Nc6 {[%emt 0:00:05]} 5. Nc3 {[%emt 0:00:48]} a6 {[%emt 0:00:59]} 6. Bf4 {[%emt 0:06:44]} d6 {[%emt 0:03:48]} 7. Bg3 {[%emt 0:03:05]} Be7 {[%emt 0:08:34]} 8. Be2 {[%emt 0:13:30]} Bd7 {[%emt 0:19:38]} 9. Nb3 {[%emt 0:06:51]} Qc7 {[%emt 0:00:42]} 10. Qd2 {[%emt 0:12:50]} Rd8 {[%emt 0:02:43]} 11. O-O-O {[%emt 0:11:32]} Bc8 {[%emt 0:01:14]} 12. Kb1 {[%emt 0:03:50]} Nf6 {[%emt 0:00:40]} 13. Rhe1 {[%emt 0:07:06]} O-O {[%emt 0:05:00]} 14. Qe3 {[%emt 0:08:01]} b5 {[%emt 0:03:21]} 15. a3 {[%emt 0:03:40]} Ne5 {[%emt 0:07:09]} 16. f4 {[%emt 0:01:31]} Nc4 {[%emt 0:00:03]} 17. Bxc4 {[%emt 0:02:40]} bxc4 {[%emt 0:00:37]} 18. Nd4 {[%emt 0:01:01]} Bd7 {[%emt 0:01:22]} 19. e5 {[%emt 0:03:37]} dxe5 {[%emt 0:02:41]} 20. fxe5 {[%emt 0:00:05]} Nh5 {[%emt 0:00:07]} 21. Bf2 {[%emt 0:05:10]} Rb8 {[%emt 0:00:08]} 22. Ka2 {[%emt 0:00:51]} Qa5 {[%emt 0:02:41]} 23. Rb1 {[%emt 0:02:05]} f5 {[%emt 0:17:09]} 24. Red1 {[%emt 0:00:58]} Rb7 {[%emt 0:01:37]} 25. Be1 {[%emt 0:00:06]} Rfb8 {[%emt 0:00:59]} 26. Ncb5 {[%emt 0:01:06]} Qb6 {[%emt 0:01:08]} 27. Nd6 {[%emt 0:00:06]} Bxd6 {[%emt 0:00:05]} 28. exd6 {[%emt 0:00:08]} Nf6 {[%emt 0:00:09]} 29. Qe5 {[%emt 0:00:23]} Ng4 {[%emt 0:02:04]} 30. Qe2 {[%emt 0:00:06]} e5 {[%emt 0:00:24]} 31. h3 {[%emt 0:02:17]} exd4 {[%emt 0:07:32]} 32. Qxc4+ {[%emt 0:00:02]} Kh8 {[%emt 0:00:06]} 33. hxg4 {[%emt 0:00:05]} Qxd6 {[%emt 0:00:52]} 34. Rxd4 {[%emt 0:01:28]} Qe7 {[%emt 0:01:41]} 35. gxf5 {[%emt 0:02:15]} Bxf5 {[%emt 0:00:10]} 36. Ka1 {[%emt 0:01:42]} Qxa3+ {[%emt 0:00:19]} 37. Qa2 {[%emt 0:00:19]} Qxa2+ {[%emt 0:02:39]} 38. Kxa2 {[%emt 0:00:02]} Bxc2 {[%emt 0:00:05]} 39. Rc1 {[%emt 0:00:04]} Rxb2+ {[%emt 0:00:33]} 40. Ka1 {[%emt 0:00:03]} R2b3 {[%emt 0:02:30]} 41. Rxc2 {[%emt 0:06:48]} Rb1+ {[%emt 0:01:29]} 42. Ka2 {[%emt 0:00:06]} Rxe1 {[%emt 0:00:04]} 43. Ra4 {[%emt 0:01:20]} Re6 {[%emt 0:00:46]} 44. Rb4 {[%emt 0:03:35]} Ree8 {[%emt 0:00:22]} 45. Ra4 {[%emt 0:00:40]} Rb6 {[%emt 0:00:19]} 46. Re4 {[%emt 0:00:22]} Reb8 {[%emt 0:00:06]} 47. g4 {[%emt 0:01:53]} h6 {[%emt 0:00:20]} 48. Ka3 {[%emt 0:01:29]} Rb1 {[%emt 0:01:26]} 49. Ra2 {[%emt 0:00:23]} R8b5 {[%emt 0:00:15]} 50. Ka4 {[%emt 0:00:33]} Rg1 {[%emt 0:00:20]} 0-1

[Event "55th Biel Festival MTO 2022"]
[Site "Biel"]
[Date "2022.07.15"]
[Round "3.8"]
[White "Iturrizaga Bonelli Eduardo"]
[Black "Panjwani Raja"]
[Result "1/2-1/2"]
[ECO "E73"]
[WhiteElo "2619"]
[BlackElo "2450"]
[Annotator "ChessBase"]
[PlyCount "33"]
[EventDate "2022.07.13"]
[EventType "swiss"]
[EventCountry "SUI"]
[SourceTitle "playchess.com"]
[Source "ChessBase"]
[SourceQuality "1"]
[TimeControl "40/5400+30:1800+30"]

1. d4 {[%emt 0:00:58]} Nf6 {[%emt 0:00:23]} 2. c4 {[%emt 0:00:24]} g6 {[%emt 0:00:12]} 3. Nc3 {[%emt 0:00:29]} Bg7 {[%emt 0:00:09]} 4. e4 {[%emt 0:00:07]} d6 {[%emt 0:00:06]} 5. Be2 {[%emt 0:00:06]} O-O {[%emt 0:00:33]} 6. Be3 {[%emt 0:00:06]} Nc6 {[%emt 0:00:25]} 7. Nf3 {[%emt 0:02:49]} Ng4 {[%emt 0:16:11]} 8. Bg5 {[%emt 0:00:19]} h6 {[%emt 0:00:12]} 9. Bh4 {[%emt 0:00:04]} g5 {[%emt 0:07:52]} 10. Bg3 {[%emt 0:00:16]} e5 {[%emt 0:02:29]} 11. d5 {[%emt 0:00:06]} Nd4 {[%emt 0:00:59]} 12. h3 {[%emt 0:00:06]} Nf6 {[%emt 0:02:20]} 13. Nxd4 {[%emt 0:28:31]} exd4 {[%emt 0:00:12]} 14. Qxd4 {[%emt 0:00:04]} Nh5 {[%emt 0:04:02]} 15. Qe3 {[%emt 0:04:33]} Nxg3 {[%emt 0:00:35]} 16. fxg3 {[%emt 0:06:16]} c5 {[%emt 0:12:56]} 17. dxc6 {[%emt 0:09:25]} 1/2-1/2

[Event "55th Biel Festival MTO 2022"]
[Site "Biel"]
[Date "2022.07.15"]
[Round "3.9"]
[White "Gaehwiler Gabriel"]
[Black "Yu Yangyi"]
[Result "0-1"]
[ECO "E68"]
[WhiteElo "2420"]
[BlackElo "2720"]
[Annotator "ChessBase"]
[PlyCount "60"]
[EventDate "2022.07.13"]
[EventType "swiss"]
[EventCountry "SUI"]
[SourceTitle "playchess.com"]
[Source "ChessBase"]
[SourceQuality "1"]
[TimeControl "40/5400+30:1800+30"]

1. d4 {[%emt 0:04:16]} Nf6 {[%emt 0:00:04]} 2. c4 {[%emt 0:00:28]} g6 {[%emt 0:00:21]} 3. Nf3 {[%emt 0:04:47]} Bg7 {[%emt 0:00:31]} 4. g3 {[%emt 0:03:13]} O-O {[%emt 0:00:16]} 5. Bg2 {[%emt 0:00:06]} d6 {[%emt 0:00:08]} 6. O-O {[%emt 0:00:09]} Nbd7 {[%emt 0:00:06]} 7. Nc3 {[%emt 0:05:56]} e5 {[%emt 0:00:08]} 8. e4 {[%emt 0:03:50]} exd4 {[%emt 0:00:43]} 9. Nxd4 {[%emt 0:00:07]} Re8 {[%emt 0:00:18]} 10. b3 {[%emt 0:12:44]} Nc5 {[%emt 0:00:49]} 11. f3 {[%emt 0:03:20]} c6 {[%emt 0:06:59]} 12. Be3 {[%emt 0:06:10]} d5 {[%emt 0:02:43]} 13. Nxc6 {[%emt 0:21:25]} bxc6 {[%emt 0:01:27]} 14. Bxc5 {[%emt 0:00:06]} dxc4 {[%emt 0:01:38]} 15. Qxd8 {[%emt 0:09:06]} Rxd8 {[%emt 0:00:05]} 16. Rfd1 {[%emt 0:00:21]} Be6 {[%emt 0:01:05]} 17. bxc4 {[%emt 0:03:14]} Nd7 {[%emt 0:01:52]} 18. Bd4 {[%emt 0:00:09]} Ne5 {[%emt 0:00:15]} 19. Ne2 {[%emt 0:05:15]} Bxc4 {[%emt 0:01:34]} 20. Kf2 {[%emt 0:01:17]} Nd3+ {[%emt 0:13:42]} 21. Ke3 {[%emt 0:00:33]} Nb4 {[%emt 0:04:20]} 22. Rdc1 {[%emt 0:05:49]} Bxa2 {[%emt 0:00:58]} 23. Bxg7 {[%emt 0:00:51]} Rd3+ {[%emt 0:00:33]} 24. Kf2 {[%emt 0:01:12]} Kxg7 {[%emt 0:00:06]} 25. Bf1 {[%emt 0:01:03]} a5 {[%emt 0:07:45]} 26. Rc5 {[%emt 0:05:53]} Rd2 {[%emt 0:01:32]} 27. Kg1 {[%emt 0:01:32]} a4 {[%emt 0:01:03]} 28. Nc3 {[%emt 0:00:23]} Bb3 {[%emt 0:00:24]} 29. Rb1 {[%emt 0:01:01]} Nc2 {[%emt 0:01:23]} 30. Rxc6 {[%emt 0:00:40]} Nd4 {[%emt 0:00:09]} 0-1

[Event "55th Biel Festival MTO 2022"]
[Site "Biel"]
[Date "2022.07.15"]
[Round "3.10"]
[White "Banusz Tamas"]
[Black "Souleidis Georgios"]
[Result "1-0"]
[ECO "D02"]
[WhiteElo "2611"]
[BlackElo "2426"]
[Annotator "ChessBase"]
[PlyCount "93"]
[EventDate "2022.07.13"]
[EventType "swiss"]
[EventCountry "SUI"]
[SourceTitle "playchess.com"]
[Source "ChessBase"]
[SourceQuality "1"]
[TimeControl "40/5400+30:1800+30"]

1. Nf3 {[%emt 0:00:12]} d5 {[%emt 0:07:40]} 2. d4 {[%emt 0:00:26]} Nf6 {[%emt 0:00:29]} 3. Bf4 {[%emt 0:00:24]} c5 {[%emt 0:00:28]} 4. e3 {[%emt 0:00:28]} Nc6 {[%emt 0:00:14]} 5. Nbd2 {[%emt 0:00:22]} cxd4 {[%emt 0:00:21]} 6. exd4 {[%emt 0:00:09]} Bf5 {[%emt 0:00:25]} 7. Bb5 {[%emt 0:01:27]} e6 {[%emt 0:00:47]} 8. Ne5 {[%emt 0:02:50]} Qb6 {[%emt 0:00:09]} 9. c4 {[%emt 0:03:19]} dxc4 {[%emt 0:01:51]} 10. a4 {[%emt 0:16:07]} Bb4 {[%emt 0:01:08]} 11. O-O {[%emt 0:02:50]} O-O {[%emt 0:02:36]} 12. Ndxc4 {[%emt 0:03:43]} Qxd4 {[%emt 0:00:17]} 13. Nxc6 {[%emt 0:00:10]} Qxf4 {[%emt 0:00:06]} 14. Nxb4 {[%emt 0:00:54]} a6 {[%emt 0:00:17]} 15. Qd6 {[%emt 0:03:27]} Qxd6 {[%emt 0:25:19]} 16. Nxd6 {[%emt 0:00:50]} axb5 {[%emt 0:00:02]} 17. axb5 {[%emt 0:02:30]} Be4 {[%emt 0:23:02]} 18. f3 {[%emt 0:04:22]} Bd5 {[%emt 0:00:18]} 19. Rxa8 {[%emt 0:01:55]} Rxa8 {[%emt 0:00:03]} 20. Rc1 {[%emt 0:00:06]} Kf8 {[%emt 0:16:29]} 21. Rc7 {[%emt 0:04:14]} Ne8 {[%emt 0:01:41]} 22. Rxf7+ {[%emt 0:03:16]} Kg8 {[%emt 0:00:04]} 23. Rd7 {[%emt 0:00:07]} Ra1+ {[%emt 0:01:22]} 24. Kf2 {[%emt 0:00:05]} Nxd6 {[%emt 0:00:02]} 25. Rxd6 {[%emt 0:00:09]} Rb1 {[%emt 0:00:02]} 26. Nxd5 {[%emt 0:07:03]} Rxb2+ {[%emt 0:00:06]} 27. Kg3 {[%emt 0:00:07]} exd5 {[%emt 0:00:03]} 28. Rxd5 {[%emt 0:00:16]} h6 {[%emt 0:01:00]} 29. h4 {[%emt 0:07:21]} Kh7 {[%emt 0:00:18]} 30. h5 {[%emt 0:02:16]} Kg8 {[%emt 0:01:10]} 31. Rf5 {[%emt 0:01:02]} Kh7 {[%emt 0:00:47]} 32. Kh3 {[%emt 0:00:47]} Kg8 {[%emt 0:00:22]} 33. g4 {[%emt 0:00:43]} Rd2 {[%emt 0:02:09]} 34. Kg3 {[%emt 0:03:39]} Rd4 {[%emt 0:01:44]} 35. Kf2 {[%emt 0:01:01]} Rd6 {[%emt 0:01:41]} 36. Ke3 {[%emt 0:00:50]} Rd1 {[%emt 0:01:00]} 37. Ke4 {[%emt 0:00:45]} Rd2 {[%emt 0:00:18]} 38. Rd5 {[%emt 0:02:45]} Re2+ {[%emt 0:01:05]} 39. Kf5 {[%emt 0:01:26]} Re7 {[%emt 0:00:53]} 40. Rd8+ {[%emt 0:00:30]} Kh7 {[%emt 0:00:48]} 41. f4 {[%emt 0:30:46]} Rc7 {[%emt 0:30:31]} 42. Ke5 {[%emt 0:03:36]} Rc5+ {[%emt 0:01:29]} 43. Rd5 {[%emt 0:00:02]} Rc4 {[%emt 0:00:08]} 44. g5 {[%emt 0:03:47]} hxg5 {[%emt 0:00:11]} 45. fxg5 {[%emt 0:00:08]} Rh4 {[%emt 0:01:11]} 46. Kd6 {[%emt 0:00:33]} Rxh5 {[%emt 0:01:22]} 47. Kc7 {[%emt 0:00:12]} 1-0

[Event "55th Biel Festival MTO 2022"]
[Site "Biel"]
[Date "2022.07.15"]
[Round "3.11"]
[White "Huschenbeth Niclas"]
[Black "Materia, Marco"]
[Result "1/2-1/2"]
[ECO "B48"]
[WhiteElo "2610"]
[BlackElo "2409"]
[Annotator "ChessBase"]
[PlyCount "164"]
[EventDate "2022.07.13"]
[EventType "swiss"]
[EventCountry "SUI"]
[SourceTitle "playchess.com"]
[Source "ChessBase"]
[SourceQuality "1"]
[TimeControl "40/5400+30:1800+30"]

1. e4 {[%emt 0:00:48]} c5 {[%emt 0:00:04]} 2. Nf3 {[%emt 0:00:06]} e6 {[%emt 0:00:04]} 3. d4 {[%emt 0:00:05]} cxd4 {[%emt 0:00:04]} 4. Nxd4 {[%emt 0:00:05]} Nc6 {[%emt 0:00:05]} 5. Nc3 {[%emt 0:00:05]} Qc7 {[%emt 0:00:04]} 6. Be3 {[%emt 0:00:11]} a6 {[%emt 0:00:05]} 7. g4 {[%emt 0:00:11]} b5 {[%emt 0:00:15]} 8. Nxc6 {[%emt 0:00:05]} Qxc6 {[%emt 0:00:06]} 9. Qd2 {[%emt 0:02:14]} b4 {[%emt 0:00:12]} 10. Ne2 {[%emt 0:00:08]} Qxe4 {[%emt 0:00:05]} 11. Rg1 {[%emt 0:00:09]} Qc4 {[%emt 0:00:18]} 12. Ng3 {[%emt 0:01:25]} Qc7 {[%emt 0:00:06]} 13. O-O-O {[%emt 0:00:08]} Nf6 {[%emt 0:00:22]} 14. Bf4 {[%emt 0:00:15]} Qb6 {[%emt 0:00:55]} 15. Be5 {[%emt 0:15:27]} d5 {[%emt 0:17:53]} 16. Kb1 {[%emt 0:15:44]} Bb7 {[%emt 0:08:39]} 17. g5 {[%emt 0:05:45]} Nd7 {[%emt 0:00:37]} 18. Bd4 {[%emt 0:00:52]} Qc7 {[%emt 0:17:42]} 19. f4 {[%emt 0:00:52]} Rg8 {[%emt 0:11:30]} 20. Nh5 {[%emt 0:09:57]} Bc5 {[%emt 0:19:20]} 21. Rg3 {[%emt 0:11:14]} Bxd4 {[%emt 0:03:28]} 22. Qxd4 {[%emt 0:00:07]} g6 {[%emt 0:03:22]} 23. Nf6+ {[%emt 0:01:54]} Nxf6 {[%emt 0:00:04]} 24. gxf6 {[%emt 0:07:34]} Rc8 {[%emt 0:01:26]} 25. c3 {[%emt 0:00:46]} Qc5 {[%emt 0:01:49]} 26. Qd2 {[%emt 0:04:59]} Kd7 {[%emt 0:05:30]} 27. cxb4 {[%emt 0:00:54]} Qb6 {[%emt 0:00:23]} 28. a4 {[%emt 0:07:59]} Rgd8 {[%emt 0:04:36]} 29. Bd3 {[%emt 0:04:35]} Rc7 {[%emt 0:01:40]} 30. Ka2 {[%emt 0:05:24]} Kc8 {[%emt 0:01:13]} 31. a5 {[%emt 0:02:25]} Qc6 {[%emt 0:00:30]} 32. Bf1 {[%emt 0:00:56]} d4 {[%emt 0:01:22]} 33. b5 {[%emt 0:01:08]} axb5 {[%emt 0:00:13]} 34. Rb3 {[%emt 0:00:31]} Rd5 {[%emt 0:02:24]} 35. Qb4 {[%emt 0:01:57]} Qc2 {[%emt 0:00:46]} 36. Rd2 {[%emt 0:00:26]} Qc5 {[%emt 0:00:41]} 37. Bg2 {[%emt 0:00:50]} Qc4 {[%emt 0:00:31]} 38. Bxd5 {[%emt 0:00:39]} Bxd5 {[%emt 0:00:05]} 39. Rxd4 {[%emt 0:00:31]} Qxb4 {[%emt 0:00:26]} 40. Rdxb4 {[%emt 0:00:04]} Kb7 {[%emt 0:00:44]} 41. Rxb5+ {[%emt 0:20:20]} Ka6 {[%emt 0:00:08]} 42. Rxd5 {[%emt 0:03:48]} exd5 {[%emt 0:00:05]} 43. Re3 {[%emt 0:01:56]} Kxa5 {[%emt 0:08:30]} 44. Re7 {[%emt 0:00:04]} Rc4 {[%emt 0:00:12]} 45. f5 {[%emt 0:01:43]} Rf4 {[%emt 0:02:21]} 46. Rxf7 {[%emt 0:00:04]} Rxf5 {[%emt 0:00:05]} 47. Rf8 {[%emt 0:02:01]} Kb6 {[%emt 0:00:28]} 48. Kb3 {[%emt 0:00:26]} Rf4 {[%emt 0:00:58]} 49. Kc3 {[%emt 0:00:28]} g5 {[%emt 0:01:44]} 50. Kd3 {[%emt 0:00:58]} h6 {[%emt 0:01:04]} 51. Ke3 {[%emt 0:02:33]} Re4+ {[%emt 0:00:48]} 52. Kd3 {[%emt 0:00:04]} Rf4 {[%emt 0:00:04]} 53. b4 {[%emt 0:00:28]} Kc7 {[%emt 0:05:08]} 54. f7 {[%emt 0:00:21]} Kb7 {[%emt 0:00:04]} 55. Kc3 {[%emt 0:00:11]} h5 {[%emt 0:02:32]} 56. Kd3 {[%emt 0:00:41]} Ka7 {[%emt 0:02:00]} 57. Ke3 {[%emt 0:00:11]} Re4+ {[%emt 0:00:08]} 58. Kf3 {[%emt 0:01:24]} Rf4+ {[%emt 0:00:04]} 59. Ke3 {[%emt 0:00:20]} Re4+ {[%emt 0:00:05]} 60. Kf3 {[%emt 0:00:12]} Rf4+ {[%emt 0:00:05]} 61. Kg3 {[%emt 0:01:08]} Rg4+ {[%emt 0:00:13]} 62. Kf2 {[%emt 0:01:18]} Rf4+ {[%emt 0:00:06]} 63. Ke2 {[%emt 0:00:04]} Re4+ {[%emt 0:00:12]} 64. Kd3 {[%emt 0:00:40]} Rf4 {[%emt 0:00:13]} 65. Kc3 {[%emt 0:00:38]} Kb7 {[%emt 0:00:23]} 66. Kb3 {[%emt 0:00:16]} Rf3+ {[%emt 0:03:45]} 67. Ka4 {[%emt 0:00:03]} d4 {[%emt 0:00:12]} 68. Rg8 {[%emt 0:00:09]} Rxf7 {[%emt 0:00:05]} 69. Rxg5 {[%emt 0:00:03]} Rd7 {[%emt 0:01:10]} 70. Kb3 {[%emt 0:01:29]} d3 {[%emt 0:00:09]} 71. Rg1 {[%emt 0:00:08]} Kb6 {[%emt 0:01:09]} 72. Kc4 {[%emt 0:00:33]} d2 {[%emt 0:00:08]} 73. Rd1 {[%emt 0:00:03]} Rd8 {[%emt 0:00:21]} 74. h4 {[%emt 0:00:19]} Rd7 {[%emt 0:00:16]} 75. Kc3 {[%emt 0:00:05]} Kb5 {[%emt 0:00:03]} 76. Rxd2 {[%emt 0:00:04]} Rxd2 {[%emt 0:00:10]} 77. Kxd2 {[%emt 0:00:03]} Kxb4 {[%emt 0:00:04]} 78. Ke3 {[%emt 0:00:04]} Kc5 {[%emt 0:00:05]} 79. Kf4 {[%emt 0:00:03]} Kd6 {[%emt 0:00:04]} 80. Kg5 {[%emt 0:00:03]} Ke7 {[%emt 0:00:04]} 81. Kxh5 {[%emt 0:00:03]} Kf8 {[%emt 0:00:06]} 82. Kg6 {[%emt 0:00:05]} Kg8 {[%emt 0:00:03]} 1/2-1/2

[Event "55th Biel Festival MTO 2022"]
[Site "Biel"]
[Date "2022.07.15"]
[Round "3.12"]
[White "Unuk, Laura"]
[Black "Ganguly Surya Shekhar"]
[Result "0-1"]
[ECO "E51"]
[WhiteElo "2340"]
[BlackElo "2608"]
[Annotator "ChessBase"]
[PlyCount "120"]
[EventDate "2022.07.13"]
[EventType "swiss"]
[EventCountry "SUI"]
[SourceTitle "playchess.com"]
[Source "ChessBase"]
[SourceQuality "1"]
[TimeControl "40/5400+30:1800+30"]

1. d4 {[%emt 0:00:27]} Nf6 {[%emt 0:00:14]} 2. c4 {[%emt 0:00:19]} e6 {[%emt 0:00:10]} 3. Nc3 {[%emt 0:00:29]} Bb4 {[%emt 0:00:22]} 4. e3 {[%emt 0:00:16]} O-O {[%emt 0:00:54]} 5. Bd2 {[%emt 0:00:29]} d5 {[%emt 0:01:06]} 6. Nf3 {[%emt 0:00:15]} b6 {[%emt 0:00:35]} 7. cxd5 {[%emt 0:00:40]} exd5 {[%emt 0:00:06]} 8. Bd3 {[%emt 0:00:20]} Bd6 {[%emt 0:00:42]} 9. Nb5 {[%emt 0:12:15]} Be7 {[%emt 0:00:07]} 10. Ne5 {[%emt 0:00:12]} c5 {[%emt 0:00:36]} 11. O-O {[%emt 0:02:02]} Bb7 {[%emt 0:02:15]} 12. Rc1 {[%emt 0:12:15]} Re8 {[%emt 0:02:58]} 13. Nc3 {[%emt 0:06:33]} Nc6 {[%emt 0:01:19]} 14. Bb5 {[%emt 0:05:19]} Qd6 {[%emt 0:07:53]} 15. Ne2 {[%emt 0:08:51]} Rec8 {[%emt 0:03:30]} 16. Bc3 {[%emt 0:05:26]} Ne4 {[%emt 0:05:55]} 17. dxc5 {[%emt 0:03:37]} bxc5 {[%emt 0:00:32]} 18. Nxc6 {[%emt 0:01:02]} Bxc6 {[%emt 0:00:06]} 19. Bxc6 {[%emt 0:00:10]} Rxc6 {[%emt 0:00:31]} 20. Qc2 {[%emt 0:06:54]} Nxc3 {[%emt 0:01:54]} 21. Nxc3 {[%emt 0:01:05]} Qe5 {[%emt 0:04:27]} 22. Rfe1 {[%emt 0:08:54]} Rd8 {[%emt 0:10:46]} 23. Rcd1 {[%emt 0:06:28]} Rcd6 {[%emt 0:00:53]} 24. e4 {[%emt 0:02:56]} dxe4 {[%emt 0:01:13]} 25. Rxd6 {[%emt 0:01:39]} Bxd6 {[%emt 0:00:07]} 26. Qxe4 {[%emt 0:02:53]} Qxh2+ {[%emt 0:00:12]} 27. Kf1 {[%emt 0:00:02]} Bf8 {[%emt 0:03:10]} 28. Rd1 {[%emt 0:07:39]} Rb8 {[%emt 0:00:14]} 29. b3 {[%emt 0:00:39]} Rb6 {[%emt 0:00:11]} 30. g3 {[%emt 0:00:56]} Rf6 {[%emt 0:02:11]} 31. Qg2 {[%emt 0:01:30]} Qh5 {[%emt 0:00:50]} 32. Rd8 {[%emt 0:01:11]} Re6 {[%emt 0:00:34]} 33. Rd1 {[%emt 0:02:22]} h6 {[%emt 0:00:23]} 34. Qd5 {[%emt 0:00:43]} Qh3+ {[%emt 0:01:00]} 35. Kg1 {[%emt 0:00:17]} h5 {[%emt 0:12:57]} 36. Ne4 {[%emt 0:00:40]} Qg4 {[%emt 0:00:49]} 37. Ng5 {[%emt 0:00:16]} Rf6 {[%emt 0:00:17]} 38. Re1 {[%emt 0:00:30]} Qf5 {[%emt 0:05:33]} 39. Qxf5 {[%emt 0:00:41]} Rxf5 {[%emt 0:00:02]} 40. f4 {[%emt 0:00:37]} Rd5 {[%emt 0:02:42]} 41. Re2 {[%emt 0:11:39]} Rd1+ {[%emt 0:01:32]} 42. Kg2 {[%emt 0:00:11]} Rc1 {[%emt 0:01:30]} 43. Kh3 {[%emt 0:05:43]} c4 {[%emt 0:01:59]} 44. bxc4 {[%emt 0:00:04]} Rxc4 {[%emt 0:00:04]} 45. Rb2 {[%emt 0:00:11]} Rc7 {[%emt 0:04:08]} 46. Rb8 {[%emt 0:02:09]} g6 {[%emt 0:00:54]} 47. Nh7 {[%emt 0:06:08]} Kxh7 {[%emt 0:00:10]} 48. Rxf8 {[%emt 0:00:04]} Kg7 {[%emt 0:01:07]} 49. Ra8 {[%emt 0:00:04]} Kf6 {[%emt 0:01:39]} 50. a4 {[%emt 0:00:05]} Ke6 {[%emt 0:03:04]} 51. Re8+ {[%emt 0:01:33]} Kd6 {[%emt 0:01:33]} 52. Re5 {[%emt 0:03:00]} Rc5 {[%emt 0:01:33]} 53. Rxc5 {[%emt 0:03:08]} Kxc5 {[%emt 0:00:04]} 54. Kh4 {[%emt 0:00:02]} Kd5 {[%emt 0:05:00]} 55. Kg5 {[%emt 0:01:08]} Ke6 {[%emt 0:01:07]} 56. a5 {[%emt 0:00:41]} a6 {[%emt 0:00:05]} 57. f5+ {[%emt 0:00:48]} gxf5 {[%emt 0:00:06]} 58. Kxh5 {[%emt 0:01:42]} f4 {[%emt 0:00:13]} 59. Kg4 {[%emt 0:00:33]} fxg3 {[%emt 0:00:06]} 60. Kxg3 {[%emt 0:00:02]} Kd5 {[%emt 0:01:06]} 0-1